[Event "4NCL 2022-2023"]
[Site "Daventry"]
[Date "2023.02.11"]
[Round "5.32"]
[White "Kalaiyalahan, Akshaya"]
[Black "Sucikova, Svetlana"]
[Result "1/2-1/2"]
[ECO "D12"]
[WhiteElo "2148"]
[BlackElo "2205"]
[Annotator "TA"]
[PlyCount "216"]
[EventDate "2022.10.20"]
[EventType "team-tourn"]
[EventCountry "ENG"]
[SourceTitle "playchess.com"]
[Source "ChessBase"]
[SourceQuality "1"]
[TimeControl "40/6000+30:2400+30"]

{[%evp 9,215,31,48,35,64,55,102,76,151,150,141,138,138,136,139,139,141,141,146,127,159,150,151,153,157,163,171,145,147,137,120,61,71,67,77,0,69,0,104,97,99,42,46,39,55,62,57,60,103,79,124,79,107,91,98,91,92,80,84,0,0,0,0,0,0,0,0,0,0,-10,-10,-10,-10,-10,-10,-10,-10,-10,-10,-10,-20,-35,-35,-35,-35,-35,-35,-35,-35,-35,-35,-72,-72,-72,-72,-72,-72,-72,-72,-72,-72,-72,-72,-72,-72,-72,-72,-72,-72,-72,-72,-72,-72,-219,-219,-219,-219,-219,0,-72,-72,-219,-219,-226,-226,-226,-226,-226,-226,-219,-35,-35,-35,-35,-35,-35,-35,-72,-72,-72,-35,-35,-35,-35,-35,-35,-35,-35,-35,-47,-47,-72,-72,-72,-72,-72,-72,-72,-72,-72,-72,-72,-8,-8,-8,-8,-8,-8,-8,-8,0,-8,-8,-8,-8,-8,-8,-8,-8,-8,-8,-8,-8,-8,0,0,0,-8,-8,-8,-8,-8,-8,-8,0,0,0,0,0,0,0,0,0,0,0,0,0,0]} 1. d4 {[%emt 0:00:05]} d5 {[%emt 0:01:45]} 2. c4 {[%emt 0:00:16]} c6 {[%emt 0:00:44]} 3. e3 {[%emt 0:00:20]} Nf6 {[%emt 0:01:32]} 4. Nf3 {[%emt 0:00:17]} Bf5 {[%emt 0:01:30]} 5. Nc3 {[%emt 0:02:06]} Nbd7 {[%emt 0:05:41]} 6. cxd5 {[%emt 0:14:15] D12: Slav Defence: 3 Nf3 Nf6 4 e3 Bf5.} cxd5 {[%emt 0:23:08]} 7. Qb3 {[%emt 0:00:45][%csl LRb7,LRd5]} Nb6 {[%emt 0:00:41]} (7... e6 $14) 8. a4 {[%emt 0:05:33] Strongly threatening Ne5. White is better.} a5 {[%emt 0:19:44]} ({Better is} 8... e6) 9. Bb5+ $16 {[%emt 0:04:11]} Bd7 {[%emt 0:02:51]} 10. Bxd7+ {[%emt 0:01:51]} Nfxd7 {[%emt 0:05:27]} 11. Nxd5 {[%emt 0:00:46] [#] White is more active.} Nxd5 $146 {[%emt 0:00:07]} ({Predecessor:} 11... e6 12. Nc3 Bb4 13. O-O O-O 14. Bd2 Nf6 15. Ne5 Rc8 16. Rfc1 Qe7 17. Rc2 Rfd8 {1-0 Gomez,C (2197)-Bertinetti,A (2022) ARG-ch U14 Villa Carlos Paz 2004 (1)}) 12. Qxd5 {[%emt 0:00:05]} Qb6 {[%emt 0:00:08]} 13. O-O {[%emt 0:02:26]} ({Much less strong is} 13. Ng5 e6 14. Qb5 (14. Qf3 Bb4+ 15. Kf1 O-O $11) 14... Qxb5 15. axb5 Rc8 $16) 13... e6 {[%emt 0:00:08]} 14. Qg5 {[%emt 0:03:27]} f6 {[%emt 0:06:27]} 15. Qg3 {[%emt 0:03:14]} Kf7 {[%emt 0:00:35]} 16. e4 {[%emt 0:01:16]} Be7 {[%emt 0:04:05]} 17. Be3 {[%emt 0:03:18]} Rhc8 {[%emt 0:01:02]} 18. Qh3 {[%emt 0:14:59]} Nf8 {[%emt 0:05:20]} 19. d5 {[%emt 0:18:19]} Bc5 {[%emt 0:01:13]} 20. Qh5+ {[%emt 0:09:53]} (20. e5 $16 {exf6 would be deadly.} Bxe3 21. fxe3 Qxe3+ 22. Kh1) 20... Kg8 $14 {[%emt 0:08:22]} 21. Bd2 {[%emt 0:10:14]} Bb4 {[%emt 0:01:16] Dodges Bc3} 22. Be3 {[%emt 0:04:09]} Bc5 {[%emt 0:00:06]} 23. Bd2 {[%emt 0:00:53]} Bb4 $1 {[%emt 0:00:02] Repels Bc3} 24. Bxb4 {[%emt 0:03:03]} Qxb4 {[%emt 0:00:20]} 25. dxe6 {[%emt 0:00:32]} (25. e5 $1 $16) 25... Nxe6 {[%emt 0:03:45]} 26. Qd5 {[%emt 0:00:07]} Ra6 {[%emt 0:00:21]} 27. e5 {[%emt 0:02:37]} Rd8 {[%emt 0:02:47]} 28. Qa2 {[%emt 0:02:53]} fxe5 {[%emt 0:00:45]} 29. Nxe5 {[%emt 0:00:06]} Qf4 {[%emt 0:02:23]} 30. Nf3 {[%emt 0:00:46]} Kh8 {[%emt 0:00:31]} 31. Rfe1 {[%emt 0:00:36]} Nd4 {[%emt 0:02:14]} 32. Nxd4 {[%emt 0:00:55]} Qxd4 {[%emt 0:00:06]} 33. Qf7 {[%emt 0:00:56] Re8+ would kill now.} h6 {[%emt 0:00:24]} 34. Qxb7 {[%emt 0:01:05]} (34. Re8+ $16 Rxe8 35. Qxe8+ Kh7 36. Qb5) 34... Rf6 $1 $11 {[%emt 0:04:02]} ({Don't take} 34... Rb6 35. Qf3 $16) 35. h3 {[%emt 0:00:57]} Rxf2 {[%emt 0:01:01]} 36. Kh1 {[%emt 0:00:03]} Rxb2 {[%emt 0:00:36]} 37. Qe4 {[%emt 0:00:53]} Qxe4 {[%emt 0:04:36]} 38. Rxe4 {[%emt 0:00:05][%mdl 4096] Endgame KRR-KRR} Rd5 {[%emt 0:00:11]} 39. Rc1 {[%emt 0:01:00]} Rg5 {[%emt 0:00:28]} 40. Rg1 {[%emt 0:00:38]} Ra2 {[%emt 0:00:33]} 41. Kh2 {[%emt 0:00:00]} Kh7 {[%emt 0:00:00]} 42. h4 {[%emt 0:00:00]} Rg6 {[%emt 0:00:00]} 43. Kh3 {[%emt 0:00:00]} Rb6 {[%emt 0:00:00]} 44. Rf1 {[%emt 0:04:03]} Rb4 {[%emt 0:00:21]} 45. Re7 {[%emt 0:00:16]} Ra3+ {[%emt 0:00:15]} ({Resist} 45... Rbxa4 46. Rff7 $16) 46. Rf3 $1 {[%emt 0:03:30]} Rxf3+ {[%emt 0:01:57]} 47. gxf3 {[%emt 0:00:04]} Rxa4 $15 {[%emt 0:00:10] KR-KR} 48. h5 {[%emt 0:02:37]} Ra1 {[%emt 0:03:17]} 49. Ra7 {[%emt 0:01:29]} Kg8 {[%emt 0:01:50]} 50. Kg2 {[%emt 0:02:23]} a4 {[%emt 0:03:08]} 51. Kh2 {[%emt 0:00:47]} a3 {[%emt 0:01:12]} 52. Kg2 {[%emt 0:00:05]} a2 {[%emt 0:00:09]} 53. Kh2 {[%emt 0:00:24]} Kf8 {[%emt 0:00:16]} (53... Rb1 {simplifies} 54. Rxa2 Rb5 55. Kg2 Rxh5 56. Ra8+ Kh7) 54. Kg2 {[%emt 0:00:11]} Ke8 {[%emt 0:00:07]} 55. Kh2 {[%emt 0:00:28]} Kd8 {[%emt 0:00:06]} (55... Rc1 {simplifies} 56. Rxa2 Rc5 57. Kg3 Rxh5 58. f4 Rc5) 56. Kg2 {[%emt 0:00:09]} Kc8 $1 {[%emt 0:00:05]} 57. Kh2 {[%emt 0:00:43]} Kb8 {[%emt 0:00:53]} 58. Ra4 {[%emt 0:00:33]} Kb7 {[%emt 0:00:52]} 59. Kg2 {[%emt 0:00:05]} Kb6 {[%emt 0:00:06]} 60. Ra8 {[%emt 0:00:28]} Kc5 {[%emt 0:00:39]} 61. Ra7 {[%emt 0:04:01]} (61. Ra5+ $17 {is a better defense.} Kc4 62. Ra7) 61... Kd4 {[%emt 0:01:32]} 62. Rd7+ {[%emt 0:02:23]} Ke3 {[%emt 0:00:28][%cal Oa1g1]} 63. Ra7 {[%emt 0:00:33]} Kd4 $2 {[%emt 0:07:44]} (63... Kd2 $19 64. Rd7+ Kc3 65. Rc7+ Kd4) 64. Ra5 {[%emt 0:00:25]} (64. Rd7+ $1 $11 {was the only way to keep the balance.} Ke5 65. Ra7) 64... Kc4 $17 {[%emt 0:00:37] Threatens to win with ...Kb3.} 65. Ra7 {[%emt 0:00:12]} (65. Ra6 $17) 65... Kd5 $19 {[%emt 0:00:22]} 66. Ra8 {[%emt 0:01:28]} Ke5 {[%emt 0:00:08]} 67. Ra6 {[%emt 0:02:48] [#]} Kf5 $1 {[%emt 0:00:25]} 68. Ra7 {[%emt 0:01:22]} Kf6 {[%emt 0:14:34]} 69. Ra5 {[%emt 0:00:07] [#]} Rb1 $2 {[%emt 0:02:29]} (69... g5 $1 $19 {And now ...Ke6 would win.} 70. hxg6 Kxg6) 70. Rxa2 $15 {[%emt 0:00:24]} Rb5 {[%emt 0:00:04]} 71. Ra6+ {[%emt 0:00:30]} Kf7 {[%emt 0:00:07]} 72. Ra7+ {[%emt 0:00:40]} Kg8 {[%emt 0:00:05]} 73. Kg3 {[%emt 0:00:28]} Rxh5 {[%emt 0:00:06]} 74. f4 {[%emt 0:02:00]} Rh1 {[%emt 0:01:33]} 75. Kg2 {[%emt 0:00:45]} Re1 {[%emt 0:00:20]} 76. Kg3 {[%emt 0:00:25]} Kf8 {[%emt 0:02:07]} 77. Kf3 {[%emt 0:00:13]} Re7 {[%emt 0:00:07]} 78. Ra8+ {[%emt 0:00:14]} Kf7 {[%emt 0:00:07]} 79. Ra6 {[%emt 0:00:23]} Re6 {[%emt 0:00:07]} 80. Ra7+ {[%emt 0:00:13]} Kf6 {[%emt 0:00:07]} 81. Rb7 {[%emt 0:01:19]} Ra6 {[%emt 0:00:41]} 82. Rb5 {[%emt 0:00:19]} g6 {[%emt 0:00:42]} 83. Rc5 {[%emt 0:01:31]} Ra3+ {[%emt 0:01:53]} 84. Kg2 {[%emt 0:00:11]} h5 {[%emt 0:01:08]} 85. Rd5 {[%emt 0:01:08]} h4 {[%emt 0:00:07]} (85... Rb3 $17) 86. Rb5 {[%emt 0:00:10] The position is equal.} Rg3+ {[%emt 0:02:56]} 87. Kf2 {[%emt 0:00:08]} Rd3 {[%emt 0:01:06]} 88. Kg2 {[%emt 0:00:14]} Ke6 {[%emt 0:00:40]} 89. Rg5 {[%emt 0:00:37]} Kf6 {[%emt 0:00:48]} 90. Rg4 {[%emt 0:02:30]} h3+ {[%emt 0:00:44]} 91. Kh2 {[%emt 0:00:03]} Rf3 {[%emt 0:01:12]} 92. Rh4 {[%emt 0:00:33]} Kf5 {[%emt 0:00:27]} 93. Rh6 {[%emt 0:00:08]} (93. Kg1 {simplifies} Rxf4 94. Rxh3 Ra4 95. Kf2) 93... Rc3 {[%emt 0:01:49]} (93... Rxf4 {simplifies} 94. Rxh3 Rf2+ 95. Kg1 Rc2) 94. Rh4 {[%emt 0:00:05]} Rd3 {[%emt 0:00:30]} 95. Rh6 {[%emt 0:00:16]} Rd1 {[%emt 0:00:56]} 96. Rxh3 {[%emt 0:00:25]} Kxf4 {[%emt 0:00:05]} 97. Rb3 {[%emt 0:00:39]} Rd2+ {[%emt 0:00:08]} 98. Kg1 {[%emt 0:00:04]} g5 {[%emt 0:00:05][%cal Bg6g5,Bg5g4,Bg4g3,Bg3g2][%mdl 32]} 99. Ra3 {[%emt 0:00:24]} g4 {[%emt 0:00:04]} 100. Rb3 {[%emt 0:00:31]} Re2 {[%emt 0:00:05]} 101. Ra3 {[%emt 0:01:20]} Re3 {[%emt 0:00:05]} 102. Rxe3 {[%emt 0:00:35]} Kxe3 $11 {[%emt 0:00:05] KP-K} 103. Kg2 {[%emt 0:00:02]} Kf4 {[%emt 0:00:07][%cal Be3f4,Bf4g4,Bg4f3,Bf3g3][%mdl 32]} 104. Kf2 {[%emt 0:00:04]} g3+ {[%emt 0:00:04]} 105. Kg2 {[%emt 0:00:02]} Kg4 {[%emt 0:00:04]} 106. Kg1 {[%emt 0:00:03]} Kf3 {[%emt 0:00:05] ( -> ...g2)} 107. Kf1 {[%emt 0:00:04]} g2+ {[%emt 0:00:03]} 108. Kg1 {[%emt 0:00:02]} Kg3 {[%emt 0:00:36] Whites escaped into a draw.   Weighted Error Value: White=0.13 (very precise) /Black=0.06 (flawless)} 1/2-1/2

[Event "4NCL 2022-2023"]
[Site "Daventry"]
[Date "2023.02.11"]
[Round "5.33"]
[White "Urkedal, Frode Olav Olsen"]
[Black "Murphy, Conor E"]
[Result "1-0"]
[ECO "D35"]
[WhiteElo "2543"]
[BlackElo "2431"]
[Annotator "TA"]
[PlyCount "133"]
[EventDate "2022.10.20"]
[EventType "team-tourn"]
[EventCountry "ENG"]
[SourceTitle "playchess.com"]
[Source "ChessBase"]
[SourceQuality "1"]
[TimeControl "40/6000+30:2400+30"]

{[%evp 13,133,17,32,29,35,6,10,9,12,16,33,28,29,42,46,30,35,22,54,61,65,8,0,12,34,16,28,13,5,7,15,14,13,12,12,6,6,6,7,0,0,0,0,0,4,0,15,0,0,0,0,0,0,0,0,0,0,-10,0,0,0,0,0,0,0,-8,0,0,13,16,14,0,0,0,0,0,0,0,0,0,0,-5,-6,-16,0,0,0,-8,0,0,0,0,0,-12,0,-18,0,0,14,20,18,0,380,370,356,342,910,1126,1091,1025,1217,1192,1129,1139,4488,2922,5120,5073,3532,3072,1955,1673]} 1. c4 {[%emt 0:00:03]} e6 {[%emt 0:00:22]} 2. Nc3 {[%emt 0:00:05]} d5 {[%emt 0:00:29]} 3. d4 {[%emt 0:00:03]} Nf6 {[%emt 0:00:32]} 4. cxd5 {[%emt 0:00:05]} exd5 {[%emt 0:00:20]} 5. Bg5 {[%emt 0:00:08][%cal Bc1g5,Bg5h4,Bh4g3,Bg3e5][%mdl 32]} Be7 {[%emt 0:00:46]} 6. e3 {[%emt 0:00:31]} O-O {[%emt 0:00:14]} 7. Bd3 {[%emt 0:04:03]} Re8 {[%emt 0:01:31]} 8. Nf3 {[%emt 0:06:23] D35: Queen's Gambit Declined: Exchange Variation.} h6 {[%emt 0:02:04] outshines the older 8...Nbd7.} 9. Bh4 {[%emt 0:01:18]} c6 {[%emt 0:02:47]} 10. Bg3 {[%emt 0:02:29] The position is equal.} Nh5 {[%emt 0:07:59]} 11. Be5 {[%emt 0:02:34]} Nf6 {[%emt 0:08:48]} 12. h3 {[%emt 0:01:45]} Bd6 {[%emt 0:03:42]} 13. O-O {[%emt 0:06:39] [#]} Bxe5 $146 {[%emt 0:10:42]} ({Predecessor:} 13... Qe7 14. Bxf6 Qxf6 15. e4 dxe4 16. Nxe4 Qe7 17. Re1 Be6 18. Bc4 Nd7 19. Bxe6 fxe6 {1-0 L'Ami,E (2621)-Costa,L (2320) Bundesliga 2122 2022 (2.3)}) 14. Nxe5 {[%emt 0:00:46][%cal Bf3e5,Be5d3,Bd3f4][%mdl 32]} (14. dxe5 Nfd7 $11) 14... c5 {[%emt 0:01:53]} 15. Rc1 {[%emt 0:03:30]} a6 {[%emt 0:06:19]} 16. Bb1 {[%emt 0:13:57]} Qd6 {[%emt 0:10:42]} 17. Qf3 {[%emt 0:07:12]} (17. Na4 $14) 17... cxd4 $11 {[%emt 0:09:43]} 18. exd4 {[%emt 0:01:08]} Nbd7 {[%emt 0:00:34]} 19. Nd3 {[%emt 0:05:03]} Nf8 {[%emt 0:12:32]} 20. Nf4 {[%emt 0:11:05][%cal Rf4d5]} Be6 {[%emt 0:01:19]} 21. Rcd1 {[%emt 0:06:12]} Rad8 {[%emt 0:01:11]} 22. a3 {[%emt 0:00:34]} Bd7 {[%emt 0:03:14]} 23. Rfe1 {[%emt 0:09:54]} (23. Nfxd5 Nxd5 24. Qxd5 (24. Nxd5 $2 Bc6 $19) 24... Qxd5 25. Nxd5 Ba4 $17) 23... Ne6 {[%emt 0:03:11]} 24. Nxe6 {[%emt 0:00:25]} (24. Ncxd5 $2 Nxd5 25. Nxd5 Ng5 26. Rxe8+ Bxe8 $19) 24... Rxe6 {[%emt 0:00:19]} 25. Rxe6 {[%emt 0:00:30]} Qxe6 {[%emt 0:00:28]} 26. Qf4 {[%emt 0:00:11]} Re8 {[%emt 0:02:09]} 27. Qc7 {[%emt 0:05:54]} Bc6 {[%emt 0:02:31]} 28. Bd3 {[%emt 0:01:28]} Re7 {[%emt 0:02:57]} 29. Qf4 {[%emt 0:00:31]} Qd7 {[%emt 0:02:48]} 30. f3 {[%emt 0:06:08]} Qd8 {[%emt 0:02:50]} 31. Qh4 {[%emt 0:06:18]} Qb6 {[%emt 0:03:40]} 32. Qf2 {[%emt 0:00:12]} Nh5 {[%emt 0:00:41]} 33. Qh4 {[%emt 0:03:35][%csl LRe7,LRh5]} Nf6 {[%emt 0:02:43]} 34. Qf2 {[%emt 0:00:05]} Nh5 {[%emt 0:00:04]} 35. Bb1 {[%emt 0:00:38]} Nf4 {[%emt 0:01:15]} 36. Kh2 {[%emt 0:01:12]} Qc7 {[%emt 0:01:58]} 37. g3 {[%emt 0:01:15]} Nh5 {[%emt 0:01:21]} 38. Ba2 {[%emt 0:01:04]} Qd6 {[%emt 0:01:32]} 39. Rd2 {[%emt 0:01:23]} Re6 {[%emt 0:00:17]} 40. Bb1 {[%emt 0:00:26][%cal Ba2b1,Bb1f5,Bf5g4,Bg4f3,Bf3g2][%mdl 32]} Qe7 {[%emt 0:01:00]} 41. Bf5 {[%emt 0:42:57]} Re1 {[%emt 0:01:31]} (41... Rd6 {simplifies} 42. Re2 Qd8 43. Bd3 Nf6) 42. Re2 {[%emt 0:00:00]} Rxe2 {[%emt 0:00:31]} 43. Qxe2 {[%emt 0:00:00]} Qg5 {[%emt 0:02:54][%csl LRf5,LRg3]} 44. Bg4 {[%emt 0:00:00] Active counter play!} Nf6 {[%emt 0:01:46]} 45. f4 {[%emt 0:00:00]} Qg6 {[%emt 0:01:19]} 46. Bf3 {[%emt 0:00:00]} Qf5 {[%emt 0:09:01]} 47. Bg2 {[%emt 0:00:00]} h5 {[%emt 0:04:08][%cal Oh5h4]} 48. Qd2 {[%emt 0:00:00]} Bd7 {[%emt 0:03:35]} 49. Nd1 {[%emt 0:00:00]} Ne4 {[%emt 0:06:32]} 50. Qe3 {[%emt 0:00:00] White is weak on the light squares} Qe6 {[%emt 0:05:45]} 51. Nf2 {[%emt 0:00:00][%cal Rf2e4]} Bc6 {[%emt 0:01:39]} 52. Nd3 {[%emt 0:00:00]} Bb5 {[%emt 0:01:17]} 53. Nf2 {[%emt 0:00:00][%cal Rf2e4]} Bc6 {[%emt 0:02:59]} 54. Qf3 {[%emt 0:00:00]} g6 {[%emt 0:01:47] ...Nd2 would be deadly.} 55. Nd3 {[%emt 0:00:00]} Bb5 {[%emt 0:00:55] [#]} 56. f5 $1 {[%emt 0:00:00]} Qf6 {[%emt 0:01:03]} 57. Nb4 {[%emt 0:00:00]} (57. Ne5 $5 {[%cal Rf5g6]}) 57... h4 $2 {[%emt 0:00:45][%mdl 8192]} ({Don't play} 57... Qxf5 58. Qxf5 gxf5 59. Nxd5 $16) (57... Qxd4 $11 {and Black has nothing to worry.} 58. fxg6 (58. Nxd5 Nd6 $11) 58... fxg6) 58. Nxd5 $18 {[%emt 0:00:00]} hxg3+ {[%emt 0:01:35]} 59. Qxg3 {[%emt 0:00:00]} Nxg3 $2 {[%emt 0:00:48]} (59... Qxd4 60. Bxe4 Qxb2+ 61. Bg2 Bf1 62. fxg6 Bxg2 63. gxf7+ Kxf7) 60. Nxf6+ {[%emt 0:00:00][%mdl 64] [#] Discovered Attack. White is clearly winning.} Kg7 {[%emt 0:00:02]} 61. Kxg3 {[%emt 0:00:00]} Kxf6 {[%emt 0:00:01]} 62. fxg6 {[%emt 0:00:00]} ({Less strong is} 62. Bxb7 Kxf5 63. Bd5 Be8 $16) 62... fxg6 {[%emt 0:00:23]} 63. Bxb7 {[%emt 0:00:00] KB-KB} g5 {[%emt 0:00:15]} 64. b4 {[%emt 0:00:00]} Kf5 {[%emt 0:00:44]} 65. Kf3 {[%emt 0:00:59]} Kf6 {[%emt 0:01:14]} 66. Bc8 {[%emt 0:00:46]} Bc6+ {[%emt 0:00:07]} 67. Ke3 {[%emt 0:00:19] Weighted Error Value: White=0.06 (flawless) /Black=0.18 (very precise)} 1-0

[Event "4NCL 2022-2023"]
[Site "Daventry"]
[Date "2023.02.11"]
[Round "5.34"]
[White "Bisby, Daniel L"]
[Black "Reimanis, Ritvars"]
[Result "1-0"]
[ECO "C02"]
[WhiteElo "2277"]
[BlackElo "2367"]
[Annotator "TA"]
[PlyCount "70"]
[EventDate "2022.10.20"]
[EventType "team-tourn"]
[EventCountry "ENG"]
[SourceTitle "playchess.com"]
[Source "ChessBase"]
[SourceQuality "1"]
[TimeControl "40/6000+30:2400+30"]

{[%evp 11,69,0,0,-22,-15,-20,18,17,55,58,42,39,60,44,49,34,60,59,57,48,66,54,46,0,0,0,0,0,88,104,133,92,122,103,222,0,0,0,0,0,0,-24,-18,-22,22,36,29987,29988,29988,29989,29989,57,29990,29991,29993,29994,29994,29995,29995,29996]} 1. e4 {[%emt 0:00:05]} e6 {[%emt 0:00:04]} 2. d4 {[%emt 0:00:21]} d5 {[%emt 0:00:07]} 3. e5 {[%emt 0:00:18]} c5 {[%emt 0:00:05]} 4. c3 {[%emt 0:00:06]} Nc6 {[%emt 0:00:04]} 5. Nf3 {[%emt 0:00:09]} Qb6 {[%emt 0:00:23]} 6. Bd3 {[%emt 0:00:45]} cxd4 {[%emt 0:00:15]} 7. O-O $1 {[%emt 0:00:14][%mdl 4] is recently more successful than 7.cxd4. C02: French: Advance Variation.} Bd7 {[%emt 0:00:58]} 8. Nbd2 {[%emt 0:05:04] [#]} g5 $146 {[%emt 0:08:39]} ({Predecessor:} 8... Rc8 9. Nb3 dxc3 10. bxc3 Qc7 11. Re1 Nge7 12. h4 Ng6 13. Qe2 Be7 14. h5 Ngxe5 15. Nxe5 Qxe5 16. Qxe5 Nxe5 17. Rxe5 {1-0 Carlsen,M (2863)-Harikrishna,P (2732) Saint Louis Blitz 2020 (15)}) 9. Re1 {[%emt 0:09:21] The position is equal.} g4 {[%emt 0:13:20]} (9... dxc3 {seems wilder.} 10. bxc3 g4 11. Ng5 Qc7) 10. Nxd4 {[%emt 0:01:00]} Nxd4 {[%emt 0:00:15]} 11. cxd4 {[%emt 0:00:08]} h5 {[%emt 0:07:14]} 12. Nb3 {[%emt 0:02:35]} Ba4 {[%emt 0:06:45]} 13. Be3 {[%emt 0:04:20]} Ne7 {[%emt 0:04:15]} 14. Qe2 {[%emt 0:02:14]} Bxb3 {[%emt 0:01:26]} 15. axb3 {[%emt 0:05:04]} Nc6 {[%emt 0:00:31]} 16. Rec1 {[%emt 0:04:57]} a6 {[%emt 0:02:43]} (16... Nxd4 $2 17. Qd1 Bc5 18. Rxc5 Qxc5 19. Bxd4 $18) 17. f3 {[%emt 0:07:58]} (17. Bb5 $14) 17... Bh6 $11 {[%emt 0:02:37]} (17... Nxd4 $2 18. Qf2 Bc5 19. Rxc5 Qxc5 20. Bxd4 $18) 18. f4 {[%emt 0:03:58][%cal Od3b5]} (18. fxg4 $2 {too greedy.} Nxd4 19. Qf2 Bxe3 20. Qxe3 Ne2+ 21. Kf2 Qxe3+ 22. Kxe3 Nxc1 23. Rxc1 hxg4 $19) 18... Kd7 {[%emt 0:05:18]} 19. Rc3 {[%emt 0:07:35]} f5 {[%emt 0:01:30]} (19... Rac8 $11) 20. exf6 $16 {[%emt 0:01:58]} Qd8 {[%emt 0:00:12]} 21. f7 $1 {[%emt 0:07:20] f5 would be deadly. White is more active.} Qf6 {[%emt 0:00:50][%csl LRd4,LRf4,LRf7] Inhibits f5.} 22. Rf1 {[%emt 0:03:42]} Nxd4 {[%emt 0:07:37]} (22... Ke7 $16) 23. Bxd4 $2 {[%emt 0:06:01]} (23. Qf2 $18 Nc6 24. Rxc6 {[%mdl 64] Remove Defender} bxc6 25. Bd4 {[%mdl 64] Skewer} Qxf7 26. Bxh8 Qxf4 27. Bd4 Qxf2+ 28. Rxf2) 23... Qxd4+ $11 {[%emt 0:00:07]} 24. Kh1 {[%emt 0:00:07]} Bxf4 {[%emt 0:06:18]} 25. Re1 $40 {[%emt 0:13:03][%mdl 128] White attacks.} Rh6 {[%emt 0:17:33]} 26. Bb5+ {[%emt 0:07:52]} Ke7 $1 {[%emt 0:00:09]} 27. Be8 {[%emt 0:00:34] Hoping for Rd3.} Rf6 {[%emt 0:03:51] aiming for ...Bd2.} (27... Kf8 $5 {[%cal Rd4d2]}) 28. Qc2 {[%emt 0:04:40][%cal Oc3c7] Rc7+! would kill now. Some like it hot} Bd6 {[%emt 0:15:08][%mdl 8192] [#] Dodges Rc7+} (28... Qb4 $14) 29. Rc7+ $1 {[%emt 0:04:38][%mdl 512]} Bxc7 {[%emt 0:03:02]} 30. Qxc7+ {[%emt 0:00:07]} Kf8 {[%emt 0:00:01]} 31. Qd6+ {[%emt 0:00:46]} Kg7 {[%emt 0:00:01] [#] White must now prevent ...Qf4.} 32. Qe7 $1 {[%emt 0:01:00][%csl Ge7][%cal Rf7f8] White mates.} (32. Rxe6 $2 Rf1#) 32... Kh6 {[%emt 0:02:30]} 33. f8=Q+ {[%emt 0:00:33][%mdl 64] Overworked Piece} Rxf8 {[%emt 0:00:01]} 34. Rxe6+ {[%emt 0:00:44]} Rf6 {[%emt 0:00:06]} 35. Rxf6+ {[%emt 0:00:10]} Kg5 {[%emt 0:00:01] Ingenious play by Bisby!   Weighted Error Value: White=0.20 (precise) /Black=0.42} 1-0